{"text_format":"1","workbook":"xlsx","n_sheets":7,"sheets":["MDDS Form","Lab Test Data","EDoC","EXAMPLE - MDDS (1)","EXAMPLE - MDDS (2)","Lookups","Definitions"],"not_rendered":{"charts":0,"images":5,"macros":1,"external_links":2,"defined_names":8,"comments":0,"pivot_tables":0},"unopened":[],"bounds":{"document_bytes":16777216,"sheet_cells":100000,"rows_first":2000,"rows_last":500,"rows_between":2000,"halvings":0,"cell_chars":16384,"cell_head_chars":4096},"cells_cut":0,"cells_raw":0,"read":"whole","date_system":"1900"}

{"sheet":"MDDS Form","index":0,"n_rows":38,"n_cols":10,"rows_kept":38,"cut":false,"hidden":false,"merged":[[2,2,2,9],[12,2,12,9],[0,0,0,5],[8,0,14,0],[8,2,8,9],[9,2,9,9],[10,2,10,9],[11,1,12,1],[11,2,11,9],[13,2,13,9],[14,2,14,9],[1,1,1,9],[3,1,3,9],[4,1,4,9],[5,1,5,9],[6,1,6,9]]}
["Material Data Declaration Sheet"]
["Date"]
["Product Line"]
["WD Part Number"]
["Supplier Part Number"]
["Product Description"]
["Product Revision"]
["Product Total Weight (g)"]
["Contact Information","Company"]
[null,"WD Supplier Code"]
[null,"Contact Name"]
[null,"Address"]
[]
[null,"Email"]
[null,"Phone Number"]
["Homogeneous Subcomponent ","Homogeneous Subcomponent Weight (g)","Substances","Substances - Other Names","CAS Number","Substance Weight (g)","Homogeneous PPM Level","EU RoHS Exemption","Purpose and Location","Is this substance a process chemical"]
[]
[]
[]
[]
[]
[]
[]
[]
[]
[]
[]
[]
[]
[]
[]
[]
[]
[]
[]
[]
[]
[null,null,null,null,"Total Weight (g):",0]

{"sheet":"Lab Test Data","index":1,"n_rows":16,"n_cols":73,"rows_kept":16,"cut":false,"hidden":false,"merged":[[12,1,15,1],[12,2,15,2],[12,3,15,3],[12,4,15,4]]}
["F0","F1","F2","F3","F4","F5","F6","F7","F8","F9","F10","F11","F12","F13","F14","F15","F16","F17","F18","F19","F20","F21","F22","F23","F24","F25","F26","F27","F28","F29","F30","F31","F32","F33","F34","F35","F36","F37","F38","F39","F40","F41","F42","F43","F44","F45","F46","F47","F48","F49","F50","F51","F52","F53","F54","F55","F56","F57","F58","F59","F60","F61","F62","F63","F64","F65","F66","F67","F68","F69","F70","F71","F72"]
[]
[]
[]
[null,"WD Part Number"]
[null,"Supplier Part Number"]
[null,"Supplier Name "]
[]
[null,"Attach Lab test report (in zip file) in Cell C9"]
[]
[]
[null,"Components","Subpart","Homogenous materials","Lab test reports","Test Results"]
[null,null,null,null,null,"Element","Lead","Mercury","Cadmium","Chromium(VI)","PBBs","PBDEs","Antimony","halogen - bromine","halogen - chlorine","Bis(2-ethylhexyl) phthalate (DEHP)","Butyl benzyl phthalate (BBP)","Dibutyl phthalate (DBP)","Diisobutyl phthalate (DIBP)"]
[null,null,null,null,null,"Result"]
[null,null,null,null,null,"Test Date  MM/DD/YYYY"]
[null,null,null,null,null,"RoHS exemption"]

{"sheet":"EDoC","index":2,"n_rows":79,"n_cols":27,"rows_kept":79,"cut":false,"hidden":false,"merged":[[55,3,56,15],[59,3,59,15],[43,3,45,15],[61,3,61,15],[76,3,76,15],[73,3,73,15],[70,3,70,15],[64,3,64,15],[65,3,65,15],[67,3,67,15],[4,3,4,17],[9,3,11,17],[14,3,15,17],[21,3,21,15],[24,3,24,15],[80,3,80,15],[79,3,79,15],[38,3,38,15],[25,3,26,14],[28,3,28,15],[31,3,31,15],[34,3,34,15],[35,3,36,13],[58,3,58,15],[68,3,68,15],[41,3,41,15],[62,3,62,15],[47,3,47,15],[48,3,49,15],[51,3,51,15],[54,3,54,15]]}
[]
[null,null,null,null,null,null,null,null,null,null,null,null,null,null,null,null,null,null,null,null,null,null,"Category",null,"Status",null,"Status"]
[null,null,null,null,null,null,null,null,null,null,null,null,null,null,null,null,null,null,null,null,null,null,null,null,null,null,"YES"]
[null,null,null,null,null,null,null,null,null,null,null,"EDoC",null,null,null,null,null,null,null,null,null,null,"Assembly",null,"YES",null,"NO"]
[null,null,null,"Environmental Declaration of Conformity ",null,null,null,null,null,null,null,null,null,null,null,null,null,null,null,null,null,null,"Part",null,"NO",null,"NA"]
[null,null,null,null,null,null,null,null,null,null,null,null,null,null,null,null,null,null,null,null,null,null,"Material",null,"NA"]
[null,null,null,null,null,null,null,null,null,null,null,null,null,null,null,null,null,null,null,null,null,null,null,null,"Silver"]
[null,null,null,null,null,null,null,null,null,null,null,null,null,null,null,null,null,null,null,null,null,null,null,null,"Gold"]
[null,1,null,"Scope"]
[null,null,null,"This declaration form applies to all Materials, Parts, Products & Packaging supplied to WDC - WD//HGST/Sandisk hardware applications and is used to verify compliance to environmental requirements in 2096-001669 Rev AY & 01-01-WW-00-00002 Rev 19\n"]
[]
[]
[]
[null,null,null,"Environmental Compliance Declaration :"]
[null,null,null,"By submitting this document, Supplier represents and warrants to Western Digital that all information in this document, including the “Full Material Disclosure” in the MDDS, is accurate and without omission."]
[]
[]
[]
[null,2,null,"Environmental Compliance",null,null,null,null,null,null,null,null,null,null,null,null,null,"YES/ NO"]
[null,null,1,"RoHS Compliance as per EU Directive 2011/65/EU or the latest"]
[null,null,null,"Comment:",null,{"$f":"IF(R20=\"No\",\"Non-Compliant, please explain in green field\",\"\")","v":""}]
[null,null,null,null,null,null,null,null,null,null,null,null,null,null,null,null,null,"YES/ NO"]
[null,null,2,"Does part contain any substance listed in the current REACH SVHC Candidate List?"]
[null,null,null,"Comment:",null,{"$f":"IF(R23=\"Yes\",\"Please list SVHC\",\"\")","v":""}]
[null,null,null,null,null,null,null,null,null,null,null,null,null,null,null,null,null,"YES/ NO"]
[null,null,3,"Compliance to Halogen-free\n- BFR/CFR/PVC; Br < 900 ppm, Cl < 900 ppm, Cl in the form of PVC < 900 ppm, Br + Cl < 1500 ppm"]
[]
[null,null,null,"Comment:",null,{"$f":"IF(R26=\"No\",\"Non-Compliant, please explain in green field\",\"\")","v":""}]
[null,null,null,null,null,null,null,null,null,null,null,null,null,null,null,null,null,"YES/ NO"]
[null,null,4,"Red-Phosphorus Free : Red-P < 1000 ppm",null,null,null,null,null,null,"     "]
[null,null,null,"Comment:",null,{"$f":"IF(R30=\"No\",\"Non-Compliant, please explain in green field\",\"\")","v":""}]
[null,null,null,null,null,null,null,null,null,null,null,null,null,null,null,null,null,"YES/ NO"]
[null,null,5,"Antimony TriOxide Free : Sb2O3 (CAS # 1309-64-4) < 700 ppm"]
[null,null,null,"Comment:",null,{"$f":"IF(R33=\"No\",\"Non-Compliant, please explain in green field\",\"\")","v":""}]
[null,null,null,null,null,null,null,null,null,null,null,null,null,null,null,null,null,"YES/ NO"]
[null,null,6,"Banned Substances Free for the prohibited substances listed in WDC \n- WD (2096-001669 Rev AY  or 01-01-WW-00-00002 Rev 19)\n"]
[]
[null,null,null,"Comment:",null,{"$f":"IF(R36=\"No\",\"Non-Compliant, please explain in green field\",\"\")","v":""}]
[null,null,null,null,null,null,null,null,null,null,null,null,null,null,null,null,null,"YES/ NO"]
[null,null,7,"Responsible Minerals - Gold, Tantalum, Tin, Tungsten and Cobalt present in the part/product/packaging"]
[null,null,null,"Comment:",null,{"$f":"IF(R40=\"Yes\",\"Enter in Green field, which 3TG and Co is/are contained in your part/product/packaging. Provide CMRT.\",\" \")","v":" "}]
[null,null,null,null,null,null,null,null,null,null,null,null,null,null,null,null,null,"YES/ NO"]
[null,null,8,"Nanomaterial Compliance as defined by 2011/696/EU :"]
[null,null,null,"Nanomaterial is “a  natural, incidental, or manufactured material that contains particles in an unbound state or as an aggregate or as an agglomerate and where, for 50 % or more of the particles in the number size distribution, one or more external dimensions is in the size range 1 nm-100 nm (nanometres)”."]
[]
[]
[null,null,null,"Comment:",null,{"$f":"IF(R43=\"No\",\"Non-Compliant, please explain in green field\",\"\")","v":""}]
[null,null,null,null,null,null,null,null,null,null,null,null,null,null,null,null,null,"Broze/Silver/Gold/NA"]
[null,null,9,"Recycle Marking on Plastic Parts weighing > 25 g as per ISO 11469 \n\"Plastics - Generic identification and marking of plastics products\""]
[]
[null,null,null,"Comment:",null,{"$f":"IF(R49=\"No\",\"Non-Compliant, please explain in green field\",\"\")","v":""}]
[null,null,null,null,null,null,null,null,null,null,null,null,null,null,null,null,null,"YES/ NO/NA"]
[null,null,10,"Packaging Material Compliant to Packaging Directive 94/62/EC (This is for Packaging material suppliers)"]
[null,null,null,"Comment:",null,{"$f":"IF(R53=\"No\",\"Non-Compliant, please explain in green field\",\"\")","v":""}]
[null,null,null,null,null,null,null,null,null,null,null,null,null,null,null,null,null,"YES/ NO/NA"]
[null,null,11,"Packaging Material Compliant to California Packaging Recycling CalRecycle\n (This is for Packaging material suppliers)"]
[]
[null,null,null,"Comment:",null,{"$f":"IF(R56=\"No\",\"Non-Compliant, please explain in green field\",\"\")","v":""}]
[null,null,null,null,null,null,null,null,null,null,null,null,null,null,null,null,null,"YES/ NO/NA"]
[null,null,12,"Does Part contain any substances listed in Controlled substances Table above threshold?"]
[null,null,null,"Comment:",null,{"$f":"IF(R60=\"Yes\",\"Please list substances\",\"\")","v":""}]
[null,null,null,null,null,null,null,null,null,null,null,null,null,null,null,null,null,"YES/ NO/NA"]
[null,null,13,"Are all reportable substances above listed threshold declared in MDDS?"]
[null,null,null,"Comment:",null,{"$f":"IF(R63=\"No\",\"Please declare them in MDDS or specify the reason of non-inclusion\",\"\")","v":""}]
[null,null,null,null,null,null,null,null,null,null,null,null,null,null,null,null,null,"YES/ NO/NA"]
[null,null,14,"Do you have any substance listed in MDDS form that is a process substance which is not present in final product? Included are solvents that are unlikely to be present in the finished product?"]
[null,null,null,"Comment:",null,{"$f":"IF(R66=\"Yes\",\"Please list all these substances in  green field\",\"\")","v":""}]
[null,null,null,null,null,null,null,null,null,null,null,null,null,null,null,null,null,"YES/ NO/NA"]
[null,null,15,"No objection to sharing reports with WDC Customers"]
[null,null,null,"Comment:",null,{"$f":"IF(R69=\"No\",\"OBJECTION, please explain in green field\",\"\")","v":""}]
[null,null,null,null,null,null,null,null,null,null,null,null,null,null,null,null,null,"YES/ NO/NA"]
[null,null,16,"Does Part contain any substance listed in Cal Prop 65 list?"]
[null,null,null,"Comment:",null,{"$f":"IF(R72=\"Yes\",\"Please provide the substance name and comment if it requires a warning label\",\"\")","v":""}]
[]
[null,null,17,"Does Part contain any  Persistent, Bioaccumulative, and Toxic (PBT) Chemicals under TSCA Section 6(h)",null,null,null,null,null,null,null,null,null,null,null,null,null,"YES/ NO/NA"]
[null,null,null,"Comment:"]
[]
[null,null,18,"Does Part contain any PFAS (per- and polyfluoroalkyl substances)?",null,null,null,null,null,null,null,null,null,null,null,null,null,"YES/ NO/NA"]
[null,null,null,"Comment:"]

{"sheet":"EXAMPLE - MDDS (1)","index":3,"n_rows":35,"n_cols":9,"rows_kept":35,"cut":false,"hidden":false,"merged":[[14,2,14,8],[6,1,6,8],[7,1,7,8],[8,0,14,0],[8,2,8,8],[9,2,9,8],[10,2,10,8],[11,1,12,1],[11,2,11,8],[12,2,12,8],[13,2,13,8],[5,1,5,8],[0,0,0,5],[1,1,1,8],[2,1,2,8],[3,1,3,8],[4,1,4,8]]}
["Material Data Declaration Sheet"]
["Date ","1/21/2019"]
["Product Line","microSD"]
["WD Part Number","54-50-12345"]
["Supplier Part Number",1234567]
["Product Description","Substrate "]
["Product Revision","Revision 1"]
["Product Total Weight (g)","0.1256 g"]
["Contact Information","Company","ABC Substrate Manufacturer"]
[null,"WD Supplier Code",345678]
[null,"Contact Name","Ming Chen"]
[null,"Address","123 A Street, XYZ City, China"]
[]
[null,"Email","mchen@abc.com"]
[null,"Phone Number","86-21-12345678"]
["Homogenous Subcomponent","Homogenous Subcomponent Weight (g)","Substance ","Substance - Other Names","CAS Number","Substance Weight (g)","Homogeneous PPM Level\n(Substance Weight/Homogeneous Subcomponent Weight*1000000)","EU RoHS Exemption","Purpose/Location"]
[]
["Solder Mask",3.5440000000000003E-3,"Acrylic Resin","PMMA","N/A",5.0000000000000002E-5,{"$f":"F18*1000000/B18","v":14108.352144469525},null,"Solder Mask"]
[null,null,"Phthalcyanine Blue, Organic Pigment ","N/A","N/A",1.4E-3,{"$f":"F19*1000000/B18","v":395033.86004514672}]
[null,null,"Aromatic Carbonyl Compound","N/A","N/A",2.5000000000000001E-4,{"$f":"F20*1000000/B18","v":70541.760722347623}]
[null,null,"Amine Compound","N/A","N/A",5.3999999999999998E-5,{"$f":"F21*1000000/B18","v":15237.020316027087}]
[null,null,"Levelling Agents & Others","N/A","N/A",2.5000000000000001E-4,{"$f":"F22*1000000/B18","v":70541.760722347623}]
[null,null,"Dipropylene Glycol Monomethyl Ether","N/A","34590-94-8",6.9999999999999994E-5,{"$f":"F23*1000000/B18","v":19751.693002257336}]
[null,null,"Acrylic Monomer","N/A","N/A",4.0000000000000002E-4,{"$f":"F24*1000000/B18","v":112866.8171557562}]
[null,null,"Epoxy Resin","N/A","85954-11-6",1E-3,{"$f":"F25*1000000/B18","v":282167.04288939049}]
[null,null,"Organic Filler","N/A","N/A",6.9999999999999994E-5,{"$f":"F26*1000000/B18","v":19751.693002257336}]
["Core Material","0.05","Bismaleimide","N/A","105391-33-1","0.005",{"$f":"F27*1000000/B27","v":100000},null,"Core"]
[null,null,"Triazine","N/A","25722-66-1","0.015",{"$f":"F28*1000000/B27","v":300000}]
[null,null,"Epoxy Resin","N/A","9003-36-5","0.015",{"$f":"F29*1000000/B27","v":300000}]
[null,null,"Inorganic filler","N/A","24623-77-6",{"$f":"B27*30%","v":1.4999999999999999E-2},{"$f":"F30*1000000/B27","v":300000}]
["Copper Plating",6.5843456000000009E-2,"Copper","Cu","7440-50-8",{"$f":"B31","v":6.5843456000000009E-2},{"$f":"F31*1000000/B31","v":1000000},null,"Conductor"]
["Nickel Plating",5.9111483700000009E-3,"Nickel","Ni","7440-02-0",{"$f":"B32","v":5.9111483700000009E-3},{"$f":"F32*1000000/B32","v":1000000},null,"Metal finish"]
["Soft Gold",9.3609825000000001E-5,"Gold","Au","7440-57-5",{"$f":"B33","v":9.3609825000000001E-5},{"$f":"F33*1000000/B33","v":1000000},null,"Metal finish"]
["Hard Gold",2.3741895000000004E-4,"Gold","Au","7440-57-5",{"$f":"B34","v":2.3741895000000004E-4},{"$f":"F34*1000000/B34","v":1000000},null,"Metal finish"]
[null,null,null,null,"Total Weight (g):"]

{"sheet":"EXAMPLE - MDDS (2)","index":4,"n_rows":23,"n_cols":9,"rows_kept":23,"cut":false,"hidden":false,"merged":[[14,2,14,8],[6,1,6,8],[7,1,7,8],[8,0,14,0],[8,2,8,8],[9,2,9,8],[10,2,10,8],[11,1,12,1],[11,2,11,8],[12,2,12,8],[13,2,13,8],[5,1,5,8],[0,0,0,5],[1,1,1,8],[2,1,2,8],[3,1,3,8],[4,1,4,8]]}
["Material Data Declaration Sheet"]
["Date ","1/21/2019"]
["Product Line","SD cards"]
["WD Part Number","10-59-12345"]
["Supplier Part Number",1234567]
["Product Description","Tact Switch"]
["Product Revision","Revision 9"]
["Product Total Weight (g)","0.019 g"]
["Contact Information","Company","ABC  Manufacturer"]
[null,"WD Supplier Code",345678]
[null,"Contact Name","Ming Chen"]
[null,"Address","123 A Street, XYZ City, China"]
[]
[null,"Email","mchen@abc.com"]
[null,"Phone Number","86-21-12345678"]
["Homogenous  Subcomponent ","Homogenous Subcomponent Weight (g)","Substance ","Substance - Other Names","CAS Number","Substance Weight (g)","Homogeneous PPM Level\n(Substance Weight/Homogeneous  Subcomponent Weight*1000000)","EU RoHS Exemption","Purpose/Location"]
["Metal contact",8.9999999999999993E-3,"Chromium",null,"7440-47-3",1.5299999999999999E-3,170000]
[null,null,"Nickel",null,"7440-02-0",6.3000000000000003E-4,70000]
[null,null,"Iron",null,"7439-89-6",6.7590000000000003E-3,751000]
[null,null,"Silver",null,"7440-22-4",8.1000000000000004E-5,9000]
["Housing",0.01,"Glass Fiber",null,"65997-17-3",3.0000000000000001E-3,300000]
[null,null,"Polyester Resin",null,"68604-67-1",7.0000000000000001E-3,700000]
[null,null,null,null,"Total Weight (g):",0]

{"sheet":"Lookups","index":5,"n_rows":83,"n_cols":1,"rows_kept":83,"cut":false,"hidden":false,"merged":[]}
["RoHS Exemptions"]
[]
["1(a) - Mercury in single capped (compact) fluorescent lamps not exceeding (per burner): For general lighting purposes < 30 W: 5 mg"]
["1(b) - Mercury in single capped (compact) fluorescent lamps not exceeding (per burner): For general lighting purposes ≥ 30 W and < 50 W: 5 mg"]
["1(c) - Mercury in single capped (compact) fluorescent lamps not exceeding (per burner): For general lighting purposes ≥ 50 W and < 150 W: 5 mg"]
["1(d) - Mercury in single capped (compact) fluorescent lamps not exceeding (per burner): For general lighting purposes ≥ 150 W: 15 mg"]
["1(e) - Mercury in single capped (compact) fluorescent lamps not exceeding (per burner): For general lighting purposes with circular or square structural shape and tube diameter ≤ 17 mm"]
["1(f) - Mercury in single capped (compact) fluorescent lamps not exceeding (per burner): For special purposes: 5 mg"]
["1(g) - For general lighting purposes < 30 W with a lifetime equal or above 20 000 h: 3,5 mg"]
["2(a)(1) - Mercury in double-capped linear fluorescent lamps for general lighting purposes not exceeding (per lamp): Tri-band phosphor with normal lifetime and a tube diameter < 9 mm (e.g. T2): 5 mg"]
["2(a)(2) - Mercury in double-capped linear fluorescent lamps for general lighting purposes not exceeding (per lamp): Tri-band phosphor with normal lifetime and a tube diameter ≥ 9 mm and ≤ 17 mm (e.g. T5): 5 mg"]
["2(a)(3) - Mercury in double-capped linear fluorescent lamps for general lighting purposes not exceeding (per lamp): Tri-band phosphor with normal lifetime and a tube diameter > 17 mm and ≤ 28 mm (e.g. T8): 5 mg"]
["2(a)(4) - Mercury in double-capped linear fluorescent lamps for general lighting purposes not exceeding (per lamp): Tri-band phosphor with normal lifetime and a tube diameter > 28 mm (e.g. T12): 5 mg"]
["2(a)(5) - Mercury in double-capped linear fluorescent lamps for general lighting purposes not exceeding (per lamp): Tri-band phosphor with long lifetime (≥ 25 000 h): 8 mg"]
["2(b)(1) - Mercury in other fluorescent lamps not exceeding (per lamp): Linear halophosphate lamps with tube > 28 mm (e.g. T10 and T12): 10 mg"]
["2(b)(2) - Mercury in other fluorescent lamps not exceeding (per lamp): Non-linear halophosphate lamps (all diameters): 15 mg"]
["2(b)(3) - Mercury in other fluorescent lamps not exceeding (per lamp): Non-linear tri-band phosphor lamps with tube diameter > 17 mm (e.g. T9)"]
["2(b)(4) - Mercury in other fluorescent lamps not exceeding (per lamp): Lamps for other general lighting and special purposes (e.g. induction lamps)"]
["3(a) - Mercury in cold cathode fluorescent lamps and external electrode fluorescent lamps (CCFL and EEFL) for special purposes not exceeding (per lamp): Short length (≤ 500 mm)"]
["3(b) - Mercury in cold cathode fluorescent lamps and external electrode fluorescent lamps (CCFL and EEFL) for special purposes not exceeding (per lamp): Medium length (> 500 mm and ≤ 1 500 mm) "]
["3(c) - Mercury in cold cathode fluorescent lamps and external electrode fluorescent lamps (CCFL and EEFL) for special purposes not exceeding (per lamp): Long length (> 1 500 mm)"]
["4(a) - Mercury in other low pressure discharge lamps (per lamp)"]
["4(b)-I - Mercury in High Pressure Sodium (vapour) lamps for general lighting purposes not exceeding (per burner) in lamps with improved colour rendering index Ra > 60: P ≤ 155 W"]
["4(b)-II - Mercury in High Pressure Sodium (vapour) lamps for general lighting purposes not exceeding (per burner) in lamps with improved colour rendering index Ra > 60: 155 W < P ≤ 405 W"]
["4(b)-III - Mercury in High Pressure Sodium (vapour) lamps for general lighting purposes not exceeding (per burner) in lamps with improved colour rendering index Ra > 60: P > 405 W"]
["4(c)-I - Mercury in other High Pressure Sodium (vapour) lamps for general lighting purposes not exceeding (per burner): P ≤ 155 W"]
["4(c)-II - Mercury in other High Pressure Sodium (vapour) lamps for general lighting purposes not exceeding (per burner): 155 W < P ≤ 405 W"]
["4(c)-III - Mercury in other High Pressure Sodium (vapour) lamps for general lighting purposes not exceeding (per burner): P > 405 W"]
["4(d) - Mercury in High Pressure Mercury (vapour) lamps (HPMV)"]
["4(e) - Mercury in metal halide lamps (MH)"]
["4(f) - Mercury in other discharge lamps for special purposes not specifically mentioned in this Annex"]
["4(g) - Mercury in hand crafted luminous discharge tubes used for signs, decorative or architectural and specialist lighting and light-artwork, where the mercury content shall be limited as follows: (a) 20 mg per electrode pair + 0,3 mg per tube length in cm, but not more than 80 mg, for outdoor applications and indoor applications exposed to temperatures below 20 °C;(b) 15 mg per electrode pair + 0,24 mg per tube length in cm, but not more than 80 mg, for all other indoor applications."]
["5(a) - Lead in glass of cathode ray tubes"]
["5(b) - Lead in glass of fluorescent tubes not exceeding 0,2 % by weight"]
["6(a) - Lead as an alloying element in steel for machining purposes and in galvanized steel containing up to 0,35 % lead by weight"]
["6(b) - Lead as an alloying element in aluminium containing up to 0,4 % lead by weight"]
["6(c) - Copper alloy containing up to 4 % lead by weight"]
["7(a) - Lead in high melting temperature type solders (i.e. lead- based alloys containing 85 % by weight or more lead)"]
["7(b) - Lead in solders for servers, storage and storage array systems, network infrastructure equipment for switching, signalling, transmission, and network management for telecommunications"]
["7(c)-I - Electrical and electronic components containing lead in a glass or ceramic other than dielectric ceramic in capacitors, e.g. piezoelectronic devices, or in a glass or ceramic matrix compound"]
["7(c)-II - Lead in dielectric ceramic in capacitors for a rated voltage of 125 V AC or 250 V DC or higher"]
["7(c)-III - Lead in dielectric ceramic in capacitors for a rated voltage of less than 125 V AC or 250 V DC"]
["7(c)-IV Lead in PZT based dielectric ceramic materials for capacitors being part of integrated circuits or discrete semiconductors"]
["8(a) - Cadmium and its compounds in one shot pellet type thermal cut-offs"]
["8(b) - Cadmium and its compounds in electrical contacts"]
["9 - Hexavalent chromium as an anticorrosion agent of the carbon steel cooling system in absorption refrigerators up to 0,75 % by weight in the cooling solution"]
["9(b) - Lead in bearing shells and bushes for refrigerant-containing compressors for heating, ventilation, air conditioning and refrigeration (HVACR) applications"]
["11(a) - Lead used in C-press compliant pin connector systems for spare parts for EEE placed on the market before 24 September 2010"]
["11(b) - Lead used in other than C-press compliant pin connector systems"]
["12 - Lead as a coating material for the thermal conduction module C-ring for spare parts for EEE placed on the market before 24 September 2010"]
["14 - Lead in solders consisting of more than two elements for the connection between the pins and the package of microprocessors with a lead content of more than 80 % and less than 85 % by weight"]
["13(a) - Lead in white glasses used for optical applications"]
["13(b) - Cadmium and lead in filter glasses and glasses used for reflectance standards"]
["15 - Lead in solders to complete a viable electrical connection between semiconductor die and carrier within integrated circuit flip chip packages"]
["16 - Lead in linear incandescent lamps with silicate coated tubes"]
["17 - Lead halide as radiant agent in high intensity discharge (HID) lamps used for professional reprography applications"]
["18(a) - Lead as activator in the fluorescent powder (1 % lead by weight or less) of discharge lamps when used as speciality lamps for diazoprinting reprography, lithography, insect traps, photochemical and curing processes containing phosphors such as SMS ((Sr,Ba) 2 MgSi 2 O 7 :Pb)"]
["18(b) - Lead as activator in the fluorescent powder (1 % lead by weight or less) of discharge lamps when used as sun tanning lamps containing phosphors such as BSP (BaSi 2 O 5 :Pb)"]
["19 - Lead with PbBiSn-Hg and PbInSn-Hg in specific compositions as main amalgam and with PbSn-Hg as auxiliary amalgam in very compact energy saving lamps (ESL)"]
["20 - Lead oxide in glass used for bonding front and rear substrates of flat fluorescent lamps used for Liquid Crystal Displays (LCDs)"]
["21 - Lead and cadmium in printing inks for the application of enamels on glasses, such as borosilicate and soda lime glasses"]
["23 - Lead in finishes of fine pitch components other than connectors with a pitch of 0,65 mm and less used in spare parts for EEE placed on the market before 24 September 2010"]
["24 - Lead in solders for the soldering to machined through hole discoidal and planar array ceramic multilayer capacitors"]
["25 - Lead oxide in surface conduction electron emitter displays (SED) used in structural elements, notably in the seal frit and frit ring"]
["26 - Lead oxide in the glass envelope of black light blue lamps"]
["27 - Lead alloys as solder for transducers used in high-powered (designated to operate for several hours at acoustic power levels of 125 dB SPL and above) loudspeakers"]
["29 - Lead bound in crystal glass as defined in Annex I (Categories 1, 2, 3 and 4) of Council Directive 69/493/EEC"]
["30 - Cadmium alloys as electrical/mechanical solder joints to electrical conductors located directly on the voice coil in transducers used in high-powered loudspeakers with sound pressure levels of 100 dB (A) and more"]
["31 - Lead in soldering materials in mercury free flat fluorescent lamps (which e.g. are used for liquid crystal displays, design or industrial lighting)"]
["32 - Lead oxide in seal frit used for making window assemblies for Argon and Krypton laser tubes"]
["33 - Lead in solders for the soldering of thin copper wires of 100 μm diameter and less in power transformers"]
["34 - Lead in cermet-based trimmer potentiometer elements"]
["36 - Mercury used as a cathode sputtering inhibitor in DC plasma displays with a content up to 30 mg per display"]
["37 - Lead in the plating layer of high voltage diodes on the basis of a zinc borate glass body"]
["38 - Cadmium and cadmium oxide in thick film pastes used on aluminium bonded beryllium oxide"]
["39 - Cadmium in colour converting II-VI LEDs (< 10 μg Cd per mm 2 of light-emitting area) for use in solid state illumination or display systems"]
["40 - Cadmium in photoresistors for analogue optocouplers applied in professional audio equipment "]
["41- Lead in solders and termination finishes of electrical and electronic components and finishes of printed circuit boards used in ignition modules and other electrical and electronic engine control systems, which for technical reasons must be mounted directly on or in the crankcase or cylinder of hand-held combustion engines (classes SH:1, SH:2, SH:3 of Directive 97/68/EC of the European Parliament and of the Council(*)"]
[]
[]
[]
["Yes"]
["No"]

{"sheet":"Definitions","index":6,"n_rows":13,"n_cols":2,"rows_kept":13,"cut":false,"hidden":false,"merged":[]}
["Homogeneous Component/SubComponent: A material that cannot be mechanically disjointed into different materials.  The term homogeneous is understood as ”of uniform composition throughout”, e.g., individual types of plastics, ceramics, glass, metal, alloys, paper, board, resins and coatings.  ","www.dti.gov.uk/sustainability/WEEE/RoHS_Regs_Draft_guidance.pdf"]
["Example 1: Insulation and metal conductors would be considered two homogeneous materials in an electric cable."]
["Example 2: A semi-conductor package would contain many homogeneous materials, which include plastic molding material, tin-electroplating coatings on the lead frame, the lead frame alloy, and the gold bonding wires."]
[]
["Substance: The chemical elements of the Homogenous Component/SubComponent"]
[]
["CAS Number: Chemical Abstracts Service Registry Number, which is a unique identifier for the chemical substance.  It does not identify the chemical manufacturer or concentration.  (For more information see http://www.cas.org/.)"]
[]
["Homogeneous PPM (parts per millon) Level: Substance Weight/Component or Subcomponent Weight*1000000"]
[]
["Purpose: For what purpose is the substance used?  (Examples are solderability or electrical interconnect, etc.)"]
[]
["Location: Where is the substance used?  (Examples are solder paste or package lead plating, etc.)"]